bitfinex-derivatives/quotes_BNBF0:USTF0_20250115
["timestamp","ask_amount","ask_price","bid_price","bid_amount"]
[1736977533176,1.05571007,710.08,709.6,5.53715777]
[1736977534175,1.05571007,710.05,709.6,5.53715777]
[1736977535674,1.05571007,710.04,709.6,5.53715777]
[1736977537977,1.05571007,710.03,709.6,5.53715777]
[1736977540079,1.05571007,710.16,709.6,5.53715777]
[1736977542577,1.05571007,710.15,709.6,5.53715777]
[1736977544179,1.05571007,710.14,709.6,5.53715777]
[1736977545178,1.05571007,710.13,709.6,5.53715777]
[1736977548487,1.05571007,710.14,709.6,5.53715777]
[1736977549688,1.05571007,710.05,709.6,5.53715777]
[1736977550488,1.05571007,710.04,709.6,5.53715777]
[1736977551284,1.05571007,710.06,709.6,5.53715777]
[1736977552089,1.05571007,710.04,709.6,5.53715777]
[1736977552990,1.05571007,710.07,709.6,5.53715777]
[1736977553889,1.05571007,710.06,709.6,5.53715777]
[1736977554584,2.15540806,710.67,709.6,5.53715777]
[1736977554585,1.05571007,710.08,709.6,5.53715777]
[1736977555390,1.05571007,710.09,709.6,5.53715777]
[1736977556386,1.05571007,710.13,709.6,5.53715777]
[1736977558387,1.05571007,710.14,709.6,5.53715777]
[1736977559596,1.05571007,710.23,709.6,5.53715777]
[1736977560598,1.05571007,710.41,709.6,5.53715777]
[1736977561698,1.05571007,710.42,709.6,5.53715777]
[1736977562499,1.05571007,710.41,709.6,5.53715777]
[1736977563503,1.47079023,710.55,709.6,5.53715777]
[1736977563504,1.05571007,710.43,709.6,5.53715777]
[1736977564298,1.05571007,710.45,709.6,5.53715777]
[1736977564502,0.25871566,710.44,709.6,5.53715777]
[1736977564805,1.05571007,710.45,709.6,5.53715777]
[1736977565105,0.25871646,710.44,709.6,5.53715777]
[1736977565304,0.25871646,710.43,709.6,5.53715777]
[1736977565505,1.05571007,710.47,709.6,5.53715777]
[1736977565706,0.25871831,710.46,709.6,5.53715777]
[1736977566707,1.31442838,710.46,709.6,5.53715777]
[1736977566901,0.25871831,710.45,709.6,5.53715777]
[1736977567811,0.25871934,710.44,709.6,5.53715777]
[1736977568004,0.25871934,710.43,709.6,5.53715777]
[1736977568208,0.25871934,710.42,709.6,5.53715777]
[1736977568409,1.05571007,710.46,709.6,5.53715777]
[1736977568610,0.25871904,710.45,709.6,5.53715777]
[1736977569208,0.25871904,710.44,709.6,5.53715777]
[1736977569409,0.25871904,710.43,709.6,5.53715777]
[1736977569612,1.05571007,710.49,709.6,5.53715777]
[1736977569909,0.25872,710.48,709.6,5.53715777]
[1736977570908,0.25872,710.47,709.6,5.53715777]
[1736977571109,0.25872,710.46,709.6,5.53715777]
[1736977571309,0.25872,710.45,709.6,5.53715777]
[1736977571518,0.25872,710.5,709.6,5.53715777]
[1736977571810,1.05571007,710.48,709.6,5.53715777]
[1736977572008,0.25872,710.47,709.6,5.53715777]
[1736977572512,1.31443007,710.47,709.6,5.53715777]
[1736977572805,0.25872,710.46,709.6,5.53715777]
[1736977573210,0.51743384,710.45,709.6,5.53715777]
[1736977573412,0.25871692,710.44,709.6,5.53715777]
[1736977573812,0.25871692,710.45,709.6,5.53715777]
[1736977574013,0.25871692,710.44,709.6,5.53715777]
[1736977574813,0.25871692,710.45,709.6,5.53715777]
[1736977581118,2.52637081,710.65,709.6,5.53715777]
[1736977581311,0.25867915,710.64,709.6,5.53715777]
[1736977581511,0.25867896,710.64,709.6,5.53715777]
[1736977582320,0.72736788,711.33,709.6,5.53715777]
[1736977582321,0.25867896,710.63,709.6,5.53715777]
[1736977582618,1.05571007,710.67,709.6,5.53715777]
[1736977583321,1.47051574,710.74,709.6,5.53715777]
[1736977583513,0.28140081,710.73,709.6,5.53715777]
[1736977590416,0.25867981,710.72,709.6,5.53715777]
[1736977590720,0.28140873,710.71,709.6,5.53715777]
[1736977590918,1.05571007,710.64,709.6,5.53715777]
[1736977591121,0.54012022,710.63,709.6,5.53715777]
[1736977591323,0.25867981,710.62,709.6,5.53715777]
[1736977591724,1.05571007,710.58,709.6,5.53715777]
[1736977591921,0.25867981,710.57,709.6,5.53715777]
[1736977592919,1.05571007,710.53,709.6,5.53715777]
[1736977593119,0.25871919,710.52,709.6,5.53715777]
[1736977593824,1.05571007,710.51,709.6,5.53715777]
[1736977595726,0.28144041,710.63,709.6,5.53715777]
[1736977595727,1.05571007,710.54,709.6,5.53715777]
[1736977596725,1.05571007,710.6,709.6,5.53715777]
[1736977597225,0.2586853,710.59,709.6,5.53715777]
[1736977597627,1.05571007,710.51,709.6,5.53715777]
[1736977598525,1.05571007,710.52,709.6,5.53715777]
[1736977598722,0.25868615,710.51,709.6,5.53715777]
[1736977599222,1.05571007,710.52,709.6,5.53715777]
[1736977599429,1.05571007,710.48,709.6,5.53715777]
[1736977600529,1.05571007,710.51,709.6,5.53715777]
[1736977600730,0.2586855,710.5,709.6,5.53715777]
[1736977601431,1.31439557,710.5,709.6,5.53715777]
[1736977601627,0.2586855,710.49,709.6,5.53715777]
[1736977602529,1.05571007,710.48,709.6,5.53715777]
[1736977605632,1.05571007,710.51,709.6,5.53715777]
[1736977606434,1.05571007,710.52,709.6,5.53715777]
[1736977606632,0.25868653,710.51,709.6,5.53715777]
[1736977607034,1.05571007,710.52,709.6,5.53715777]
[1736977607535,1.05571007,710.5,709.6,5.53715777]
[1736977608335,1.05571007,710.49,709.6,5.53715777]
[1736977608829,1.05571007,710.48,709.6,5.53715777]
[1736977609934,1.05571007,710.45,709.6,5.53715777]
[1736977610937,1.31440931,710.44,709.6,5.53715777]
[1736977611235,1.05571007,710.44,709.6,5.53715777]
[1736977612037,1.05571007,710.4,709.6,5.53715777]
[1736977613335,1.05571007,710.38,709.6,5.53715777]
[1736977614437,1.05571007,710.37,709.6,5.53715777]
[1736977618142,1.05571007,710.46,709.6,5.53715777]
[1736977619042,1.05571007,710.48,709.6,5.53715777]
[1736977620442,1.05571007,710.46,709.6,5.53715777]
[1736977621342,1.05571007,710.47,709.6,5.53715777]
[1736977623336,1.05571007,710.46,709.6,5.53715777]
[1736977625346,1.05571007,710.47,709.6,5.53715777]
[1736977626248,1.05571007,710.46,709.6,5.53715777]
[1736977627243,1.05571007,710.45,709.6,5.53715777]
[1736977628249,1.05571007,710.41,709.6,5.53715777]
[1736977628948,1.05571007,710.43,709.6,5.53715777]
[1736977630050,1.05571007,710.42,709.6,5.53715777]
[1736977630751,1.05571007,710.41,709.6,5.53715777]
[1736977632344,1.47075397,710.61,709.6,5.53715777]
[1736977632345,1.05571007,710.42,709.6,5.53715777]
[1736977633445,1.47075397,710.61,709.6,5.53715777]
[1736977633446,1.05571007,710.41,709.6,5.53715777]
[1736977634253,1.05571007,710.39,709.6,5.53715777]
[1736977634951,1.05571007,710.38,709.6,5.53715777]
[1736977636754,1.05571007,710.37,709.6,5.53715777]
[1736977637748,1.05571007,710.58,709.6,5.53715777]
[1736977637749,1.05571007,710.44,709.6,5.53715777]
[1736977638555,1.05571007,710.43,709.6,5.53715777]
[1736977639555,1.05571007,710.42,709.6,5.53715777]
[1736977640550,1.05571007,710.41,709.6,5.53715777]
[1736977641355,1.05571007,710.45,709.6,5.53715777]
[1736977642455,1.05571007,710.44,709.6,5.53715777]
[1736977643353,1.05571007,710.43,709.6,5.53715777]
[1736977644350,1.05571007,710.42,709.6,5.53715777]
[1736977645353,1.05571007,710.41,709.6,5.53715777]
[1736977646361,1.05571007,710.37,709.6,5.53715777]
[1736977647562,1.05571007,710.36,709.6,5.53715777]
[1736977650167,0.25873859,710.35,709.6,5.53715777]
[1736977650561,1.05571007,710.36,709.6,5.53715777]
[1736977650765,1.75232206,710.53,709.6,5.53715777]
[1736977650766,1.05571007,710.27,709.6,5.53715777]
[1736977651664,1.05571007,710.47,709.6,5.53715777]
[1736977651665,1.05571007,710.26,709.6,5.53715777]
[1736977652465,0.28148002,710.53,709.6,5.53715777]
[1736977652466,1.05571007,710.29,709.6,5.53715777]
[1736977653468,1.05571007,710.31,709.6,5.53715777]
[1736977654671,0.25882842,710.3,709.6,5.53715777]
[1736977654873,0.25882842,710.29,709.6,5.53715777]
[1736977655071,0.25884106,710.28,709.6,5.53715777]
[1736977655270,0.25884106,710.27,709.6,5.53715777]
[1736977655465,0.25883709,710.31,709.6,5.53715777]
[1736977655668,0.54040863,710.3,709.6,5.53715777]
[1736977655870,1.05571007,710.1,709.6,5.53715777]
[1736977656167,0.25883747,710.09,709.6,5.53715777]
[1736977656872,1.05571007,710.15,709.6,5.53715777]
[1736977656873,0.25883747,710.08,709.6,5.53715777]
[1736977657068,0.25883747,710.07,709.6,5.53715777]
[1736977657269,0.25883747,710.06,709.6,5.53715777]
[1736977657467,0.25883747,710.05,709.6,5.53715777]
[1736977657670,1.05571007,710.15,709.6,5.53715777]
[1736977657971,0.25884146,710.14,709.6,5.53715777]
[1736977658873,0.25884146,710.13,709.6,5.53715777]
[1736977659066,0.25884146,710.12,709.6,5.53715777]
[1736977659373,0.25884146,710.11,709.6,5.53715777]
[1736977659675,0.25884146,710.1,709.6,5.53715777]
[1736977659972,0.25884146,710.09,709.6,5.53715777]
[1736977660173,0.25884146,710.08,709.6,5.53715777]
[1736977660473,1.05571007,710.21,709.6,5.53715777]
[1736977660474,0.25884146,710.07,709.6,5.53715777]
[1736977660666,0.25884146,710.06,709.6,5.53715777]
[1736977660868,0.25884146,710.05,709.6,5.53715777]
[1736977661070,0.25884146,710.04,709.6,5.53715777]
[1736977661266,1.05571007,710.24,709.6,5.53715777]
[1736977661472,0.5404373,710.23,709.6,5.53715777]
[1736977661670,0.25883839,710.22,709.6,5.53715777]
[1736977664376,1.75286069,710.23,709.6,5.53715777]
[1736977664576,0.25883599,710.22,709.6,5.53715777]
[1736977664976,1.75286069,710.23,709.6,5.53715777]
[1736977666380,0.25883744,710.22,709.6,5.53715777]
[1736977671685,1.75286069,710.23,709.6,5.53715777]
[1736977678987,0.28160288,710.22,709.6,5.53715777]
[1736977681192,0.25884569,710.21,709.6,5.53715777]
[1736977682193,0.28160288,710.22,709.6,5.53715777]
[1736977682394,0.25884201,710.21,709.6,5.53715777]
[1736977683397,1.05571007,710.19,709.6,5.53715777]
[1736977683697,0.25884201,710.18,709.6,5.53715777]
[1736977684095,1.31455208,710.18,709.6,5.53715777]
[1736977684398,0.25884201,710.17,709.6,5.53715777]
[1736977684601,1.05571007,710.18,709.6,5.53715777]
[1736977684802,1.05571007,710.14,709.6,5.53715777]
[1736977685596,1.05571007,710.15,709.6,5.53715777]
[1736977686502,1.05571007,710.09,709.6,5.53715777]
[1736977687603,0.28160288,710.22,709.6,5.53715777]
[1736977687604,1.05571007,710.03,709.6,5.53715777]
[1736977688200,0.28160288,710.22,709.6,5.53715777]
[1736977688201,1.05571007,710.05,709.6,5.53715777]
[1736977689402,0.28160288,710.22,709.6,5.53715777]
[1736977689403,1.05571007,710.04,709.6,5.53715777]
[1736977690402,0.28160288,710.22,709.6,5.53715777]
[1736977690403,1.05571007,710.02,709.6,5.53715777]
[1736977691002,1.05571007,709.95,709.6,5.53715777]
[1736977691905,1.05571007,709.94,709.6,5.53715777]
[1736977692706,1.05571007,709.93,709.6,5.53715777]
[1736977693706,1.05571007,709.92,709.6,5.53715777]
[1736977694708,0.28160288,710.22,709.6,5.53715777]
[1736977695109,0.25879785,710.21,709.6,5.53715777]
[1736977695310,0.28160288,710.22,709.6,5.53715777]
[1736977695510,1.05571007,710.12,709.6,5.53715777]
[1736977696309,1.05571007,710.14,709.6,5.53715777]
[1736977697408,1.33731295,710.22,709.6,5.53715777]
[1736977698506,1.05571007,710.32,709.6,5.53715777]
[1736977699411,2.15540806,710.9,709.6,5.53715777]
[1736977699412,1.05571007,710.66,709.6,5.53715777]
[1736977699612,0.28143249,710.65,709.6,5.53715777]
[1736977704214,1.47060895,710.64,709.6,5.53715777]
[1736977704509,0.28144041,710.63,709.6,5.53715777]
[1736977708816,0.25871085,710.62,709.6,5.53715777]
[1736977709019,0.28144833,710.61,709.6,5.53715777]
[1736977709318,0.25871085,710.6,709.6,5.53715777]
[1736977709512,0.28145625,710.59,709.6,5.53715777]
[1736977709713,0.25871085,710.58,709.6,5.53715777]
[1736977711821,0.25870721,710.57,709.6,5.53715777]
[1736977712020,0.25870721,710.56,709.6,5.53715777]
[1736977712217,0.25870721,710.55,709.6,5.53715777]
[1736977712423,0.25870721,710.54,709.6,5.53715777]
[1736977712624,0.25870721,710.53,709.6,5.53715777]
[1736977712827,0.28145625,710.59,709.6,5.53715777]
[1736977713023,0.25870561,710.58,709.6,5.53715777]
[1736977714725,0.28145625,710.59,709.6,5.53715777]
[1736977715725,0.25865868,710.58,709.6,5.53715777]
[1736977716824,0.28145625,710.59,709.6,5.53715777]
[1736977717021,0.25865771,710.58,709.6,5.53715777]
[1736977718729,0.28145625,710.59,709.6,5.53715777]
[1736977749741,0.25868305,710.58,709.6,5.53715777]
[1736977750341,0.25868345,710.57,709.6,5.53715777]
[1736977750538,0.25868345,710.56,709.6,5.53715777]
[1736977750742,0.25868345,710.55,709.6,5.53715777]
[1736977751044,1.05118654,710.43,709.6,5.53715777]
[1736977752045,1.05118654,710.44,709.6,5.53715777]
[1736977752945,1.05118654,710.45,709.6,5.53715777]
[1736977753544,0.25869099,710.44,709.6,5.53715777]
[1736977753745,1.30987753,710.44,709.6,5.53715777]
[1736977754044,1.05118654,710.44,709.6,5.53715777]
[1736977754941,1.05118654,710.46,709.6,5.53715777]
[1736977755149,0.25868984,710.45,709.6,5.53715777]
[1736977755538,1.05118654,710.46,709.6,5.53715777]
[1736977756047,0.28145625,710.59,709.6,5.53715777]
[1736977756048,1.05118654,710.47,709.6,5.53715777]
[1736977756948,0.28145625,710.59,709.6,5.53715777]
[1736977756949,1.05118654,710.55,709.6,5.53715777]
[1736977757150,0.25867911,710.54,709.6,5.53715777]
[1736977757951,1.05118654,710.53,709.6,5.53715777]
[1736977758144,0.25867911,710.52,709.6,5.53715777]
[1736977758347,0.25868849,710.52,709.6,5.53715777]
[1736977758552,0.25868747,710.51,709.6,5.53715777]
[1736977758753,0.25868747,710.5,709.6,5.53715777]
[1736977758951,1.05118654,710.52,709.6,5.53715777]
[1736977759148,0.25868291,710.51,709.6,5.53715777]
[1736977759357,1.05118654,710.52,709.6,5.53715777]
[1736977759553,0.25868325,710.51,709.6,5.53715777]
[1736977759746,1.05118654,710.53,709.6,5.53715777]
[1736977759952,0.25868614,710.52,709.6,5.53715777]
[1736977760553,0.25868314,710.51,709.6,5.53715777]
[1736977760749,0.25868327,710.5,709.6,5.53715777]
[1736977760954,1.05118654,710.53,709.6,5.53715777]
[1736977761155,0.25868064,710.52,709.6,5.53715777]
[1736977761954,1.05118654,710.54,709.6,5.53715777]
[1736977762256,0.25867889,710.53,709.6,5.53715777]
[1736977762650,0.25868374,710.52,709.6,5.53715777]
[1736977762854,0.25868374,710.51,709.6,5.53715777]
[1736977763053,0.25868374,710.5,709.6,5.53715777]
[1736977763253,0.25868374,710.49,709.6,5.53715777]
[1736977763454,1.05118654,710.54,709.6,5.53715777]
[1736977763652,0.25868502,710.53,709.6,5.53715777]
[1736977763851,1.05118654,710.54,709.6,5.53715777]
[1736977764255,1.05118654,710.53,709.6,5.53715777]
[1736977765052,1.05118654,710.57,709.6,5.53715777]
[1736977765760,0.25868905,710.56,709.6,5.53715777]
[1736977765959,0.28145625,710.59,709.6,5.53715777]
[1736977765960,1.33264279,710.59,709.6,5.53715777]
[1736977766259,0.25868834,710.58,709.6,5.53715777]
[1736977766459,0.25868834,710.57,709.6,5.53715777]
[1736977766655,1.33264279,710.59,709.6,5.53715777]
[1736977766854,0.25868818,710.58,709.6,5.53715777]
[1736977767057,1.33264279,710.59,709.6,5.53715777]
[1736977767260,0.25868799,710.58,709.6,5.53715777]
[1736977767459,1.33264279,710.59,709.6,5.53715777]
[1736977768460,0.28145625,710.59,709.6,5.53715777]
[1736977775062,1.33264279,710.59,709.6,5.53715777]
[1736977776265,0.28145625,710.59,709.6,5.53715777]
[1736977777567,0.25867896,710.58,709.6,5.53715777]
[1736977778870,1.05118654,710.52,709.6,5.53715777]
[1736977779872,1.05118654,710.48,709.6,5.53715777]
[1736977780666,1.05118654,710.43,709.6,5.53715777]
[1736977781673,1.05118654,710.44,709.6,5.53715777]
[1736977782573,0.28145625,710.59,709.6,5.53715777]
[1736977782574,1.05118654,710.41,709.6,5.53715777]
[1736977783674,1.05118654,710.36,709.6,5.53715777]
[1736977785768,1.05118654,710.37,709.6,5.53715777]
[1736977787478,1.05118654,710.36,709.6,5.53715777]
[1736977788072,1.05118654,710.34,709.6,5.53715777]
[1736977790677,0.28145625,710.59,709.6,5.53715777]
[1736977790678,1.05118654,710.36,709.6,5.53715777]
[1736977792577,1.05118654,710.35,709.6,5.53715777]
[1736977795685,1.05118654,710.36,709.6,5.53715777]
[1736977796586,1.05118654,710.37,709.6,5.53715777]
[1736977798689,1.05118654,710.57,709.6,5.53715777]
[1736977802495,0.28145625,710.59,709.6,5.53715777]
[1736977808400,1.05118654,710.53,709.6,5.53715777]
[1736977810204,1.05118654,710.45,709.6,5.53715777]
[1736977812201,1.05118654,710.44,709.6,5.53715777]
[1736977813303,1.05118654,710.4,709.6,5.53715777]
[1736977814104,0.28145625,710.59,709.6,5.53715777]
[1736977823505,0.25875343,710.58,709.6,5.53715777]
[1736977823712,0.28146417,710.57,709.6,5.53715777]
[1736977823913,0.25875343,710.56,709.6,5.53715777]
[1736977824109,0.28147209,710.55,709.6,5.53715777]
[1736977824313,0.25875343,710.54,709.6,5.53715777]
[1736977824513,1.05118654,710.41,709.6,5.53715777]
[1736977824813,0.25875343,710.4,709.6,5.53715777]
[1736977825609,1.05118654,710.32,709.6,5.53715777]
[1736977825810,0.25875343,710.31,709.6,5.53715777]
[1736977826109,0.258758,710.3,709.6,5.53715777]
[1736977826310,1.05118654,710.32,709.6,5.53715777]
[1736977826506,1.05118654,710.35,709.6,5.53715777]
[1736977827812,0.28147209,710.55,709.6,5.53715777]
[1736977839912,0.25867042,710.54,709.6,5.53715777]
[1736977840115,0.28147209,710.55,709.6,5.53715777]
[1736977840716,0.25866755,710.54,709.6,5.53715777]
[1736977840917,0.28147209,710.55,709.6,5.53715777]
[1736977850121,0.28147209,710.55,709.6,4.41015777]
[1736977858823,0.25866359,710.54,709.6,4.41015777]
[1736977859528,0.28147209,710.55,709.6,4.41015777]
[1736977860529,0.25866449,710.54,709.6,4.41015777]
[1736977860921,0.28147209,710.55,709.6,4.41015777]
[1736977861122,0.25866399,710.54,709.6,4.41015777]
[1736977862029,1.0550274,710.42,709.6,4.41015777]
[1736977863528,1.0550274,710.41,709.6,4.41015777]
[1736977864732,1.0550274,710.39,709.6,4.41015777]
[1736977865730,1.0550274,710.41,709.6,4.41015777]
[1736977866630,1.0550274,710.4,709.6,4.41015777]
[1736977867531,1.0550274,710.41,709.6,4.41015777]
[1736977869132,1.0550274,710.42,709.6,4.41015777]
[1736977870130,0.28147209,710.55,709.6,4.41015777]
[1736977870131,1.0550274,710.41,709.6,4.41015777]
[1736977870533,0.0330274,710.41,709.6,4.41015777]
[1736977871133,0.28147209,710.55,709.6,4.41015777]
[1736977887446,1.0550274,710.88,709.6,4.41015777]
[1736977888045,1.0550274,711.05,709.6,4.41015777]
[1736977888242,0.25858162,711.04,709.6,4.41015777]
[1736977888743,0.53985974,711.04,709.6,4.41015777]
[1736977888943,0.25858162,711.03,709.61,0.28184495]
[1736977889147,0.28127812,711.04,709.61,0.28184495]
[1736977890246,0.28127812,711.04,709.61,1.45184495]
[1736977890446,0.28127812,711.04,709.61,2.12884495]
[1736977892144,0.28127812,711.04,709.61,3.10784495]
[1736977897746,0.25851693,711.03,709.61,3.10784495]
[1736977899655,0.2585253,711.02,709.61,3.10784495]
[1736977899856,0.2585253,711.01,709.61,3.10784495]
[1736977900056,0.2585253,711.0,709.61,3.10784495]
[1736977900356,0.28127812,711.04,709.61,3.10784495]
[1736977900558,0.25852879,711.03,709.61,3.10784495]
[1736977902353,0.2585289,711.02,709.61,3.10784495]
[1736977902553,0.2585289,711.03,709.61,3.10784495]
[1736977902754,0.2585289,711.02,709.61,3.10784495]
[1736977902953,0.25850822,711.01,709.61,3.10784495]
[1736977903360,0.25850822,711.0,709.61,3.10784495]
[1736977903559,0.28127812,711.04,709.61,3.10784495]
[1736977909758,0.28127812,711.04,709.61,4.49084495]
[1736977926363,0.28127812,711.04,709.61,5.53666106]
[1736977927368,0.28127812,711.04,709.62,1.04581611]
[1736977927571,0.28127812,711.04,709.64,0.28183304]
[1736977928268,0.28127812,711.04,709.71,1.04581611]
[1736977928472,0.28127812,711.04,709.73,0.2817973]
[1736977928765,0.28127812,711.04,709.73,3.3107973]
[1736977930174,1.05003991,711.41,709.73,3.3107973]
[1736977930470,0.25844283,711.4,709.73,3.3107973]
[1736977933773,0.28113183,711.41,709.76,0.28178539]
[1736977933973,0.25837821,711.4,709.76,0.28178539]
[1736977934967,0.28113183,711.41,709.86,1.04581611]
[1736977935170,0.25837729,711.4,709.88,0.28173775]
[1736977935672,0.28113183,711.41,709.88,0.28173775]
[1736977940780,0.25840325,711.4,709.88,0.28173775]
[1736977942279,0.25841227,711.39,709.88,0.28173775]
[1736977942481,0.25841227,711.38,709.88,0.28173775]
[1736977943580,0.25841227,711.37,709.88,0.28173775]
[1736977943780,0.28113183,711.41,709.88,0.28173775]
[1736977943781,0.25841227,711.36,709.88,0.28173775]
[1736977943980,0.25841227,711.35,709.88,0.28173775]
[1736977944183,0.25841227,711.34,709.88,0.28173775]
[1736977944383,0.25841227,711.33,709.88,0.28173775]
[1736977944583,0.25841227,711.32,709.88,0.28173775]
[1736977944883,0.25841227,711.31,709.88,0.28173775]
[1736977945184,0.25842006,711.3,709.88,0.28173775]
[1736977945481,0.25842006,711.29,709.88,0.28173775]
[1736977945682,0.28113183,711.41,709.88,0.28173775]
[1736977945886,0.25842135,711.4,709.88,0.28173775]
[1736977948880,0.25842135,711.4,709.88,1.40773775]
[1736977949581,0.25842139,711.39,709.88,1.40773775]
[1736977949779,0.25842139,711.38,709.88,1.40773775]
[1736977949981,0.25842139,711.37,709.88,1.40773775]
[1736977950184,0.25842139,711.36,709.88,1.40773775]
[1736977950382,0.25842139,711.35,709.88,1.40773775]
[1736977950582,0.25842139,711.34,709.88,1.40773775]
[1736977950786,0.25841926,711.33,709.88,1.40773775]
[1736977950985,0.25841926,711.32,709.88,1.40773775]
[1736977951287,0.25841926,711.31,709.88,1.40773775]
[1736977951584,0.25841926,711.3,709.88,1.40773775]
[1736977951779,0.25841926,711.29,709.88,1.40773775]
[1736977951978,0.25841926,711.4,709.88,2.31373775]
[1736977952184,0.25842529,711.39,709.88,2.31373775]
[1736977952480,0.25842529,711.38,709.88,2.31373775]
[1736977952783,0.25842529,711.37,709.88,2.31373775]
[1736977953080,0.25842529,711.36,709.88,2.31373775]
[1736977953283,0.25842529,711.35,709.88,2.31373775]
[1736977953478,0.25842522,711.34,709.88,2.31373775]
[1736977953678,0.28113183,711.41,709.88,2.31373775]
[1736977953679,0.25842522,711.33,709.88,2.31373775]
[1736977953880,0.25842522,711.32,709.88,2.31373775]
[1736977954080,0.28113183,711.41,709.88,2.31373775]
[1736977954284,0.25842407,711.4,709.88,2.31373775]
[1736977954684,0.25842407,711.4,709.88,3.91673775]
[1736977956579,0.25842688,711.39,709.88,3.91673775]
[1736977956885,0.28113183,711.41,709.88,3.91673775]
[1736977956886,0.25842654,711.38,709.88,3.91673775]
[1736977957084,0.28113183,711.41,709.88,3.91673775]
[1736977957085,0.25842654,711.37,709.88,3.91673775]
[1736977957388,0.25842654,711.36,709.88,3.91673775]
[1736977957589,0.25842654,711.35,709.88,3.91673775]
[1736977957779,0.25842654,711.34,709.88,3.91673775]
[1736977957986,0.25842592,711.33,709.88,4.59273775]
[1736977958186,0.25842592,711.32,709.88,4.59273775]
[1736977958385,0.25842592,711.31,709.88,4.59273775]
[1736977958685,0.25842592,711.3,709.88,4.59273775]
[1736977958887,0.25842592,711.29,709.88,4.59273775]
[1736977959185,0.28113183,711.41,709.88,4.59273775]
[1736977959380,0.25843315,711.4,709.88,4.59273775]
[1736977960688,0.2584263,711.39,709.88,4.59273775]
[1736977960988,0.25842894,711.38,709.88,4.59273775]
[1736977961287,0.25842894,711.37,709.92,1.04581611]
[1736977961782,1.05003991,711.38,709.92,1.04581611]
[1736977961783,0.25843226,711.36,709.93,0.28171791]
[1736977961990,0.25843226,711.35,709.93,0.28171791]
[1736977962288,0.25843046,711.34,709.93,0.28171791]
[1736977962486,0.25843046,711.33,709.93,0.28171791]
[1736977962686,0.25843046,711.32,709.93,0.28171791]
[1736977962887,1.33117174,711.41,709.93,0.28171791]
[1736977963085,0.25843035,711.4,709.93,1.15971791]
[1736977965481,0.28113183,711.41,709.93,1.15971791]
[1736977965687,0.25843478,711.4,709.93,1.15971791]
[1736977968287,0.25843543,711.39,709.93,1.15971791]
[1736977968483,0.25843543,711.38,709.93,1.15971791]
[1736977968692,0.25843543,711.37,709.93,1.15971791]
[1736977968989,0.25843543,711.36,709.93,1.15971791]
[1736977969288,0.28113183,711.41,709.93,2.40171791]
[1736977969492,0.25843384,711.4,709.93,2.40171791]
[1736977971091,0.28113183,711.41,709.93,2.40171791]
[1736977971390,0.25842799,711.4,709.93,2.40171791]
[1736977971590,0.28113183,711.41,709.93,2.40171791]
[1736977974594,0.25843083,711.4,709.93,2.40171791]
[1736977978596,0.28113183,711.41,709.93,2.40171791]
[1736977978901,0.25843051,711.4,709.93,2.40171791]
[1736977980097,1.31197097,711.4,709.93,3.07771791]
[1736977980296,1.05354046,711.4,709.93,3.07771791]
[1736977980904,0.53963478,711.39,709.93,3.07771791]
[1736977981098,0.53964565,711.38,709.93,3.07771791]
[1736977981299,0.25850196,711.37,709.93,3.07771791]
[1736977982100,0.28115159,711.36,709.93,3.07771791]
[1736977982300,0.25850196,711.35,709.93,3.07771791]
[1736977982495,0.2811595,711.34,709.93,3.07771791]
[1736977982701,0.2585182,711.33,709.93,3.07771791]
[1736977982893,0.2811674,711.32,709.93,3.07771791]
[1736977983199,0.2585182,711.31,709.93,3.07771791]
[1736977983501,0.2811674,711.32,709.93,3.07771791]
[1736977983700,0.25853879,711.31,709.93,3.07771791]
[1736977984202,0.28117531,711.3,709.93,3.07771791]
[1736977984404,0.25853879,711.29,709.93,3.07771791]
[1736977984596,0.28118321,711.28,709.93,3.07771791]
[1736977984796,0.25853879,711.27,709.93,4.62071791]
[1736977985001,0.28119112,711.26,709.93,4.62071791]
[1736977985202,0.25853879,711.25,709.93,4.62071791]
[1736977985401,0.28119903,711.24,709.93,4.62071791]
[1736977985703,0.25851588,711.23,709.93,4.62071791]
[1736977985898,0.28120694,711.22,709.93,4.62071791]
[1736977986101,0.25851588,711.21,709.93,4.62071791]
[1736977987706,0.25851033,711.2,709.93,4.62071791]
[1736977987906,0.25851033,711.19,709.93,4.62071791]
[1736977988103,0.25850204,711.18,709.93,4.62071791]
[1736977988306,0.25850204,711.17,709.93,4.62071791]
[1736977988606,0.25850204,711.16,709.93,4.62071791]
[1736977988908,0.2584988,711.15,709.93,4.62071791]
[1736977989201,0.2584988,711.14,709.93,4.62071791]
[1736977989406,0.2584988,711.13,709.93,4.62071791]
[1736977989608,0.25849884,711.12,709.93,4.62071791]
[1736977989807,0.25849884,711.11,709.93,4.62071791]
[1736977990001,0.25849884,711.1,709.93,4.62071791]
[1736977990201,0.25849884,711.09,709.93,4.62071791]
[1736977990407,0.25849884,711.08,709.93,4.62071791]
[1736977990602,0.28120694,711.22,709.93,4.62071791]
[1736977990806,0.2585023,711.21,709.93,4.62071791]
[1736977991007,1.05029311,711.17,709.93,4.62071791]
[1736977991208,0.2585023,711.16,709.93,4.62071791]
[1736977991408,1.05029311,711.17,709.93,4.62071791]
[1736977992008,0.2585023,711.2,709.93,4.62071791]